[Event "*** Titled Tuesday Blitz"]
[Site "Chess.com"]
[Date "2021.03.02"]
[Round "10"]
[White "NateSolon"]
[Black "LionTheLeon_06"]
[Result "1-0"]
[WhiteElo "2611"]
[BlackElo "2694"]
[TimeControl "180+1"]
[EndTime "11:59:15 PST"]
[Termination "NateSolon won by resignation"]

1. d4 {[%clk 0:03:00.9]} 1... Nf6 {[%clk 0:02:59.6]} 2. c4 {[%clk 0:03:00.7]}
2... c5 {[%clk 0:02:59.6]} 3. d5 {[%clk 0:03:00.1]} 3... e6 {[%clk 0:03:00.2]}
4. Nc3 {[%clk 0:02:59.6]} 4... exd5 {[%clk 0:03:00.7]} 5. cxd5 {[%clk
0:03:00.5]} 5... d6 {[%clk 0:03:01.3]} 6. Nf3 {[%clk 0:02:59.8]} 6... g6 {[%clk
0:03:01.6]} 7. Bf4 {[%clk 0:02:58.9]} 7... a6 {[%clk 0:03:01.4]} 8. a4 {[%clk
0:02:58.8]} 8... Bg7 {[%clk 0:03:00.1]} 9. h3 {[%clk 0:02:58.9]} 9... O-O {[%clk
0:03:00]} 10. e3 {[%clk 0:02:59.2]} 10... Ne8 {[%clk 0:02:59.3]} 11. Nd2 {[%clk
0:02:56.3]} 11... Nd7 {[%clk 0:02:57.7]} 12. Nc4 {[%clk 0:02:56.3]} 12... Ne5
{[%clk 0:02:48.4]} 13. Bxe5 {[%clk 0:02:55.5]} 13... Bxe5 {[%clk 0:02:48.2]} 14.
Nxe5 {[%clk 0:02:48.7]} 14... dxe5 {[%clk 0:02:48]} 15. a5 {[%clk 0:02:46.3]}
15... Nd6 {[%clk 0:02:47.8]} 16. Be2 {[%clk 0:02:45]} 16... Bd7 {[%clk
0:02:46.4]} 17. O-O {[%clk 0:02:44.2]} 17... f5 {[%clk 0:02:44.9]} 18. Qc2
{[%clk 0:02:35.6]} 18... Rc8 {[%clk 0:02:44.4]} 19. Rfd1 {[%clk 0:02:33.2]}
19... Qe7 {[%clk 0:02:43.9]} 20. Ra3 {[%clk 0:02:18.8]} 20... f4 {[%clk
0:02:33.7]} 21. exf4 {[%clk 0:02:14.2]} 21... Rxf4 {[%clk 0:02:32.8]} 22. Bf1
{[%clk 0:01:48.6]} 22... Rcf8 {[%clk 0:02:30.7]} 23. Rd2 {[%clk 0:01:48.8]}
23... e4 {[%clk 0:02:24.4]} 24. Nd1 {[%clk 0:01:46.1]} 24... Qg5 {[%clk
0:02:15.2]} 25. Rg3 {[%clk 0:01:40.2]} 25... Qe5 {[%clk 0:02:14.6]} 26. Qxc5
{[%clk 0:01:30.9]} 26... Rxf2 {[%clk 0:01:20.6]} 27. Rxg6+ {[%clk 0:01:30]}
27... hxg6 {[%clk 0:01:21]} 28. Rxf2 {[%clk 0:01:30.9]} 28... Rxf2 {[%clk
0:01:19.6]} 29. Nxf2 {[%clk 0:01:23.6]} 29... Kf7 {[%clk 0:01:03.9]} 30. Nd1
{[%clk 0:01:17.6]} 30... Ke7 {[%clk 0:01:02.4]} 31. Ne3 {[%clk 0:01:16.2]} 31...
Kf7 {[%clk 0:00:59.4]} 32. b4 {[%clk 0:01:12.7]} 32... Qf4 {[%clk 0:00:56.9]}
33. Nc4 {[%clk 0:00:54]} 33... Nxc4 {[%clk 0:00:44.2]} 34. Qxc4 {[%clk
0:00:54.3]} 34... Ke7 {[%clk 0:00:42.3]} 35. Qc5+ {[%clk 0:00:52.3]} 35... Qd6
{[%clk 0:00:40.2]} 36. Kf2 {[%clk 0:00:51.4]} 36... Qxc5+ {[%clk 0:00:23.5]} 37.
bxc5 {[%clk 0:00:50.9]} 37... Kf6 {[%clk 0:00:24.4]} 38. Ke3 {[%clk 0:00:40.4]}
38... Ke5 {[%clk 0:00:24.1]} 39. Bc4 {[%clk 0:00:37.1]} 39... g5 {[%clk
0:00:24.5]} 40. d6 {[%clk 0:00:23.1]} 40... Bc8 {[%clk 0:00:23.4]} 41. Bb3
{[%clk 0:00:20.5]} 41... Bd7 {[%clk 0:00:23.2]} 42. Bc4 {[%clk 0:00:18.4]} 42...
Bc8 {[%clk 0:00:22.9]} 43. Ba2 {[%clk 0:00:18.1]} 43... Bf5 {[%clk 0:00:20.5]}
44. Bf7 {[%clk 0:00:17.8]} 44... Bd7 {[%clk 0:00:20.3]} 45. Bg6 {[%clk
0:00:13.5]} 45... Bc6 {[%clk 0:00:10.2]} 46. d7 {[%clk 0:00:12.9]} 46... Bxd7
{[%clk 0:00:09.9]} 47. Bxe4 {[%clk 0:00:12.9]} 47... Bc8 {[%clk 0:00:09.6]} 48.
g3 {[%clk 0:00:12.3]} 48... Kf6 {[%clk 0:00:07.6]} 49. h4 {[%clk 0:00:12.4]}
49... gxh4 {[%clk 0:00:08]} 50. gxh4 {[%clk 0:00:13.3]} 50... Ke5 {[%clk
0:00:07.2]} 51. h5 {[%clk 0:00:13.3]} 51... Kf6 {[%clk 0:00:07.2]} 52. Kf4
{[%clk 0:00:12]} 52... Kg7 {[%clk 0:00:06.1]} 53. Ke5 {[%clk 0:00:11.9]} 53...
Kh6 {[%clk 0:00:06.1]} 54. Bf3 {[%clk 0:00:12.2]} 54... Bd7 {[%clk 0:00:05.8]}
55. Kd6 {[%clk 0:00:12.4]} 55... Bb5 {[%clk 0:00:05.6]} 56. Kc7 {[%clk
0:00:11.5]} 1-0

[Event "*** Titled Tuesday Blitz"]
[Site "Chess.com"]
[Date "2021.03.02"]
[Round "10"]
[White "rpragchess"]
[Black "Kobalia"]
[Result "1-0"]
[WhiteElo "2877"]
[BlackElo "2719"]
[TimeControl "180+1"]
[EndTime "11:59:18 PST"]
[Termination "rpragchess won on time"]

1. e4 {[%clk 0:03:00.9]} 1... c6 {[%clk 0:02:59.4]} 2. Nf3 {[%clk 0:02:59.9]}
2... d5 {[%clk 0:03:00.3]} 3. Nc3 {[%clk 0:03:00.6]} 3... Bg4 {[%clk 0:02:58.9]}
4. h3 {[%clk 0:03:00.7]} 4... Bxf3 {[%clk 0:02:59]} 5. Qxf3 {[%clk 0:03:01.6]}
5... Nf6 {[%clk 0:02:59]} 6. Be2 {[%clk 0:02:59.7]} 6... e6 {[%clk 0:02:58.3]}
7. O-O {[%clk 0:02:57.1]} 7... Bb4 {[%clk 0:02:57.6]} 8. Rd1 {[%clk 0:02:45.6]}
8... O-O {[%clk 0:02:54.8]} 9. d3 {[%clk 0:02:28.8]} 9... Nbd7 {[%clk
0:02:50.4]} 10. Bf4 {[%clk 0:02:29.4]} 10... Qa5 {[%clk 0:02:45.6]} 11. e5
{[%clk 0:02:19.9]} 11... Ne8 {[%clk 0:02:41.4]} 12. d4 {[%clk 0:02:16.6]} 12...
f6 {[%clk 0:02:36.7]} 13. Qg3 {[%clk 0:02:09.8]} 13... fxe5 {[%clk 0:02:32.6]}
14. dxe5 {[%clk 0:02:10.7]} 14... Nc5 {[%clk 0:02:28.3]} 15. Bd2 {[%clk
0:01:44.3]} 15... Qb6 {[%clk 0:02:16.8]} 16. Be3 {[%clk 0:01:43.1]} 16... Qa5
{[%clk 0:02:08.5]} 17. Bd4 {[%clk 0:01:26.1]} 17... Nd7 {[%clk 0:02:00.7]} 18.
a3 {[%clk 0:01:13.2]} 18... Bxc3 {[%clk 0:01:38.6]} 19. Bxc3 {[%clk 0:01:11.5]}
19... Qd8 {[%clk 0:01:38.9]} 20. Bb4 {[%clk 0:01:05.3]} 20... Rf7 {[%clk
0:01:35.8]} 21. Bg4 {[%clk 0:01:04.2]} 21... Nc7 {[%clk 0:01:34.5]} 22. Bd6
{[%clk 0:01:04.7]} 22... Nf8 {[%clk 0:01:28.5]} 23. c4 {[%clk 0:01:03.5]} 23...
Qd7 {[%clk 0:01:26.5]} 24. Rac1 {[%clk 0:01:00.8]} 24... a5 {[%clk 0:01:04.2]}
25. Bxc7 {[%clk 0:00:39.7]} 25... Qxc7 {[%clk 0:01:01.2]} 26. cxd5 {[%clk
0:00:40.2]} 26... exd5 {[%clk 0:00:58.4]} 27. Rxd5 {[%clk 0:00:28.9]} 27... Qb6
{[%clk 0:00:56.9]} 28. Rd2 {[%clk 0:00:28.1]} 28... Re8 {[%clk 0:00:53]} 29. Re1
{[%clk 0:00:28]} 29... Ne6 {[%clk 0:00:50]} 30. Bh5 {[%clk 0:00:22.8]} 30... g6
{[%clk 0:00:48.5]} 31. Bg4 {[%clk 0:00:19.1]} 31... Nf4 {[%clk 0:00:40.2]} 32.
e6 {[%clk 0:00:18.4]} 32... Rf6 {[%clk 0:00:40.5]} 33. e7 {[%clk 0:00:15.1]}
33... Kf7 {[%clk 0:00:30.7]} 34. Rd7 {[%clk 0:00:10]} 34... Qxb2 {[%clk
0:00:24.5]} 35. Bf3 {[%clk 0:00:06.6]} 35... Qc3 {[%clk 0:00:20.3]} 36. Re3
{[%clk 0:00:06.9]} 36... Qc5 {[%clk 0:00:18.8]} 37. Qh4 {[%clk 0:00:05.2]} 37...
h5 {[%clk 0:00:17]} 38. g3 {[%clk 0:00:03.3]} 38... g5 {[%clk 0:00:16.2]} 39.
Bxh5+ {[%clk 0:00:03.4]} 39... Kg7 {[%clk 0:00:14.2]} 40. Bxe8 {[%clk
0:00:02.8]} 40... gxh4 {[%clk 0:00:13]} 41. Bh5 {[%clk 0:00:03.4]} 41... Nxh3+
{[%clk 0:00:08.9]} 42. Kh1 {[%clk 0:00:01.5]} 42... Nxf2+ {[%clk 0:00:07.4]} 43.
Kg2 {[%clk 0:00:02]} 43... h3+ {[%clk 0:00:07.1]} 44. Kh2 {[%clk 0:00:02.4]}
44... Ng4+ {[%clk 0:00:06.9]} 45. Bxg4 {[%clk 0:00:02.8]} 45... Rf2+ {[%clk
0:00:03.7]} 46. Kxh3 {[%clk 0:00:03]} 46... Rh2+ {[%clk 0:00:02.4]} 47. Kxh2
{[%clk 0:00:03.2]} 47... Qc2+ {[%clk 0:00:01.6]} 48. Re2 {[%clk 0:00:03.6]} 1-0

[Event "*** Titled Tuesday Blitz"]
[Site "Chess.com"]
[Date "2021.03.02"]
[Round "10"]
[White "PrinceMurad09"]
[Black "Azeryahu"]
[Result "0-1"]
[WhiteElo "2563"]
[BlackElo "2745"]
[TimeControl "180+1"]
[EndTime "11:59:18 PST"]
[Termination "Azeryahu won by resignation"]

1. e4 {[%clk 0:03:00.9]} 1... c6 {[%clk 0:02:58.5]} 2. Nf3 {[%clk 0:03:00.7]}
2... d5 {[%clk 0:02:58.7]} 3. Nc3 {[%clk 0:03:01.3]} 3... dxe4 {[%clk
0:02:54.9]} 4. Nxe4 {[%clk 0:03:02.2]} 4... Nf6 {[%clk 0:02:55.2]} 5. Qe2 {[%clk
0:03:01.7]} 5... Nxe4 {[%clk 0:02:50.8]} 6. Qxe4 {[%clk 0:03:02.6]} 6... Qd5
{[%clk 0:02:50.9]} 7. Qh4 {[%clk 0:03:02.7]} 7... Bf5 {[%clk 0:02:47.5]} 8. Bc4
{[%clk 0:02:45.5]} 8... Qd6 {[%clk 0:02:31]} 9. Bb3 {[%clk 0:02:42]} 9... Nd7
{[%clk 0:02:26.7]} 10. O-O {[%clk 0:02:40.7]} 10... e6 {[%clk 0:02:24.7]} 11. d4
{[%clk 0:02:39.6]} 11... Be7 {[%clk 0:02:24]} 12. Bg5 {[%clk 0:02:36.6]} 12...
h6 {[%clk 0:02:22]} 13. Bxe7 {[%clk 0:02:36.1]} 13... Qxe7 {[%clk 0:02:22.9]}
14. Qxe7+ {[%clk 0:02:35.7]} 14... Kxe7 {[%clk 0:02:23.8]} 15. Rfe1 {[%clk
0:02:35.5]} 15... Rhd8 {[%clk 0:02:21.8]} 16. c3 {[%clk 0:02:30.6]} 16... a5
{[%clk 0:02:21.1]} 17. Rac1 {[%clk 0:02:28.4]} 17... a4 {[%clk 0:02:18.7]} 18.
Bc2 {[%clk 0:02:28.8]} 18... Bxc2 {[%clk 0:02:18.6]} 19. Rxc2 {[%clk 0:02:29.7]}
19... Kf8 {[%clk 0:02:12.8]} 20. Kf1 {[%clk 0:02:16.4]} 20... c5 {[%clk
0:02:07.3]} 21. Rd2 {[%clk 0:02:09.8]} 21... Rac8 {[%clk 0:01:18.8]} 22. dxc5
{[%clk 0:02:07.2]} 22... Nxc5 {[%clk 0:01:17.4]} 23. Red1 {[%clk 0:02:07.3]}
23... Rxd2 {[%clk 0:01:15.7]} 24. Rxd2 {[%clk 0:02:07.6]} 24... a3 {[%clk
0:01:14.8]} 25. bxa3 {[%clk 0:02:07.8]} 25... Ra8 {[%clk 0:01:02.2]} 26. Nd4
{[%clk 0:01:42.9]} 26... Rxa3 {[%clk 0:00:57.3]} 27. Nb5 {[%clk 0:01:39.1]}
27... Ra5 {[%clk 0:00:57.6]} 28. Rb2 {[%clk 0:01:37.1]} 28... Ke7 {[%clk
0:00:51.3]} 29. Nd4 {[%clk 0:01:34.3]} 29... g6 {[%clk 0:00:43.6]} 30. Rb5
{[%clk 0:01:26]} 30... Rxb5 {[%clk 0:00:34.5]} 31. Nxb5 {[%clk 0:01:26.9]} 31...
e5 {[%clk 0:00:35.2]} 32. Ke2 {[%clk 0:01:25.4]} 32... Ke6 {[%clk 0:00:35]} 33.
c4 {[%clk 0:01:18.9]} 33... f5 {[%clk 0:00:35.1]} 34. f3 {[%clk 0:01:12.7]}
34... h5 {[%clk 0:00:31]} 35. h4 {[%clk 0:01:12.1]} 35... f4 {[%clk 0:00:26.7]}
36. Nc3 {[%clk 0:01:10.3]} 36... Kf5 {[%clk 0:00:26.8]} 37. Nd5 {[%clk
0:01:05.5]} 37... e4 {[%clk 0:00:23]} 38. Ne7+ {[%clk 0:01:03.8]} 38... Kf6
{[%clk 0:00:23.3]} 39. Nd5+ {[%clk 0:01:02.2]} 39... Ke5 {[%clk 0:00:23.5]} 40.
Ne7 {[%clk 0:01:00.5]} 40... Kd4 {[%clk 0:00:05.7]} 41. Nxg6 {[%clk 0:00:56.6]}
41... Nd3 {[%clk 0:00:06.3]} 42. c5 {[%clk 0:00:49.7]} 42... e3 {[%clk
0:00:05.4]} 43. a3 {[%clk 0:00:37.5]} 43... Kc3 {[%clk 0:00:03.9]} 44. Ne7
{[%clk 0:00:27.5]} 44... Nc1+ {[%clk 0:00:03.2]} 45. Ke1 {[%clk 0:00:27.2]}
45... Kc2 {[%clk 0:00:02]} 46. Nd5 {[%clk 0:00:21.1]} 46... Nd3+ {[%clk
0:00:02.1]} 47. Ke2 {[%clk 0:00:21.6]} 47... Nc1+ {[%clk 0:00:01.5]} 48. Kf1
{[%clk 0:00:20.5]} 48... Nd3 {[%clk 0:00:02.4]} 49. Nb4+ {[%clk 0:00:18.3]}
49... Nxb4 {[%clk 0:00:01.3]} 50. axb4 {[%clk 0:00:18.5]} 50... Kd2 {[%clk
0:00:01.9]} 51. Kg1 {[%clk 0:00:19.1]} 51... e2 {[%clk 0:00:02.8]} 52. c6 {[%clk
0:00:19.2]} 52... e1=Q+ {[%clk 0:00:03.7]} 53. Kh2 {[%clk 0:00:20]} 53... Qxh4+
{[%clk 0:00:04]} 54. Kg1 {[%clk 0:00:20.9]} 54... Ke2 {[%clk 0:00:04.7]} 55.
cxb7 {[%clk 0:00:21.3]} 55... Qe1+ {[%clk 0:00:04.1]} 56. Kh2 {[%clk 0:00:21.9]}
56... Qxb4 {[%clk 0:00:05]} 57. b8=Q {[%clk 0:00:21.6]} 57... Qxb8 {[%clk
0:00:05.5]} 58. Kh3 {[%clk 0:00:22.5]} 58... Qg8 {[%clk 0:00:05.7]} 59. Kh4
{[%clk 0:00:23.4]} 59... Qg3+ {[%clk 0:00:05.7]} 60. Kxh5 {[%clk 0:00:23.8]}
60... Qxg2 {[%clk 0:00:06.2]} 61. Kh6 {[%clk 0:00:24.7]} 61... Kxf3 {[%clk
0:00:07]} 0-1

[Event "*** Titled Tuesday Blitz"]
[Site "Chess.com"]
[Date "2021.03.02"]
[Round "10"]
[White "Forantes"]
[Black "lelya96"]
[Result "1-0"]
[WhiteElo "2431"]
[BlackElo "2271"]
[TimeControl "180+1"]
[EndTime "11:59:19 PST"]
[Termination "Forantes won by resignation"]

1. Nf3 {[%clk 0:03:00.9]} 1... d5 {[%clk 0:02:58.8]} 2. g3 {[%clk 0:03:01.1]}
2... Bg4 {[%clk 0:02:57.6]} 3. d4 {[%clk 0:03:00.8]} 3... c6 {[%clk 0:02:57.1]}
4. Bg2 {[%clk 0:03:01.1]} 4... Nf6 {[%clk 0:02:55.7]} 5. O-O {[%clk 0:03:01.2]}
5... Nbd7 {[%clk 0:02:55.4]} 6. c4 {[%clk 0:03:01.5]} 6... e6 {[%clk 0:02:55.1]}
7. Qb3 {[%clk 0:03:01.3]} 7... Qb6 {[%clk 0:02:53.1]} 8. c5 {[%clk 0:02:57.7]}
8... Qxb3 {[%clk 0:02:51.9]} 9. axb3 {[%clk 0:02:58.4]} 9... Bxf3 {[%clk
0:02:44]} 10. exf3 {[%clk 0:02:46.9]} 10... Be7 {[%clk 0:02:41.2]} 11. b4 {[%clk
0:02:45.6]} 11... e5 {[%clk 0:02:38.7]} 12. Re1 {[%clk 0:02:35.1]} 12... exd4
{[%clk 0:02:38.4]} 13. Bf4 {[%clk 0:02:29.1]} 13... Kd8 {[%clk 0:02:36.7]} 14.
Nd2 {[%clk 0:02:21]} 14... Nf8 {[%clk 0:02:31.2]} 15. Nb3 {[%clk 0:02:11]} 15...
Ne6 {[%clk 0:02:30.4]} 16. Be5 {[%clk 0:02:11.2]} 16... Re8 {[%clk 0:02:26.5]}
17. Nxd4 {[%clk 0:02:08]} 17... Nxd4 {[%clk 0:02:17]} 18. Bxd4 {[%clk
0:02:07.9]} 18... g6 {[%clk 0:02:07.1]} 19. Re3 {[%clk 0:01:36.6]} 19... Nh5
{[%clk 0:01:40.6]} 20. b5 {[%clk 0:00:56.4]} 20... Kd7 {[%clk 0:01:28.2]} 21.
Rea3 {[%clk 0:00:49.2]} 21... cxb5 {[%clk 0:00:58.5]} 22. Rxa7 {[%clk
0:00:47.8]} 22... Rxa7 {[%clk 0:00:58.3]} 23. Rxa7 {[%clk 0:00:48.6]} 23... Kc6
{[%clk 0:00:58.7]} 24. b4 {[%clk 0:00:44.3]} 24... Bf6 {[%clk 0:00:54.5]} 25.
Bxf6 {[%clk 0:00:37.4]} 25... Nxf6 {[%clk 0:00:53.8]} 26. Bf1 {[%clk 0:00:37.2]}
26... Re1 {[%clk 0:00:49]} 27. Ra8 {[%clk 0:00:17.9]} 27... Rb1 {[%clk
0:00:26.3]} 28. Rc8+ {[%clk 0:00:17.7]} 28... Kd7 {[%clk 0:00:26.2]} 29. Rf8
{[%clk 0:00:14.3]} 29... Ke7 {[%clk 0:00:17.4]} 30. Rb8 {[%clk 0:00:14.1]} 30...
Rxb4 {[%clk 0:00:15.2]} 31. Rxb7+ {[%clk 0:00:14]} 31... Ke6 {[%clk 0:00:15.7]}
32. f4 {[%clk 0:00:09.2]} 32... d4 {[%clk 0:00:15.5]} 33. c6 {[%clk 0:00:07.7]}
33... Nd5 {[%clk 0:00:11.8]} 34. c7 {[%clk 0:00:03.4]} 34... Kd7 {[%clk
0:00:11.9]} 35. Bxb5+ {[%clk 0:00:03.4]} 35... Kc8 {[%clk 0:00:11.9]} 36. Bd7+
{[%clk 0:00:01.6]} 36... Kxb7 {[%clk 0:00:11.7]} 37. c8=Q+ {[%clk 0:00:01.5]}
37... Kb6 {[%clk 0:00:11.6]} 38. Qc6+ {[%clk 0:00:02.1]} 38... Ka5 {[%clk
0:00:11.5]} 39. Qxd5+ {[%clk 0:00:02.8]} 39... Kb6 {[%clk 0:00:10.5]} 40. Qc6+
{[%clk 0:00:03.3]} 40... Ka7 {[%clk 0:00:10.3]} 41. Qc7+ {[%clk 0:00:03.4]}
41... Rb7 {[%clk 0:00:09.5]} 42. Qc5+ {[%clk 0:00:03.5]} 42... Kb8 {[%clk
0:00:09.8]} 43. Bc6 {[%clk 0:00:04.2]} 43... Rc7 {[%clk 0:00:09.7]} 44. Kg2
{[%clk 0:00:04.9]} 44... Kc8 {[%clk 0:00:10]} 45. Qd6 {[%clk 0:00:05.2]} 45...
Kb8 {[%clk 0:00:09.3]} 46. Bd5 {[%clk 0:00:05.6]} 46... Kc8 {[%clk 0:00:09.7]}
47. Qf8+ {[%clk 0:00:05.3]} 47... Kd7 {[%clk 0:00:08.5]} 48. Qxf7+ {[%clk
0:00:06.2]} 48... Kd6 {[%clk 0:00:08.8]} 49. Qe6+ {[%clk 0:00:06.9]} 49... Kc5
{[%clk 0:00:08.7]} 50. Bf3 {[%clk 0:00:07.5]} 50... d3 {[%clk 0:00:07.9]} 51.
Qd5+ {[%clk 0:00:07.6]} 51... Kb6 {[%clk 0:00:07.9]} 52. Qxd3 {[%clk 0:00:08.2]}
52... Rc5 {[%clk 0:00:08]} 53. Qd6+ {[%clk 0:00:08.5]} 53... Kb5 {[%clk
0:00:07.9]} 54. Qe7 {[%clk 0:00:08.8]} 54... Kc4 {[%clk 0:00:07]} 55. Qxh7
{[%clk 0:00:08.9]} 55... Kd4 {[%clk 0:00:07.5]} 56. Qxg6 {[%clk 0:00:08.9]} 1-0

[Event "*** Titled Tuesday Blitz"]
[Site "Chess.com"]
[Date "2021.03.02"]
[Round "10"]
[White "heyjohnnypark"]
[Black "BahadirOzen"]
[Result "1/2-1/2"]
[WhiteElo "2610"]
[BlackElo "2765"]
[TimeControl "180+1"]
[EndTime "11:59:20 PST"]
[Termination "Game drawn - insufficient material"]

1. d4 {[%clk 0:03:00.9]} 1... d6 {[%clk 0:03:00.2]} 2. Nf3 {[%clk 0:03:01.2]}
2... Bg4 {[%clk 0:03:00.3]} 3. e4 {[%clk 0:03:00]} 3... Nf6 {[%clk 0:02:59.8]}
4. Nc3 {[%clk 0:03:00.6]} 4... e6 {[%clk 0:02:59.9]} 5. h3 {[%clk 0:03:01.1]}
5... Bh5 {[%clk 0:03:00.4]} 6. Qe2 {[%clk 0:03:01.8]} 6... c6 {[%clk 0:03:00.1]}
7. g4 {[%clk 0:03:01.6]} 7... Bg6 {[%clk 0:03:00.6]} 8. h4 {[%clk 0:03:02.2]}
8... h5 {[%clk 0:03:01.2]} 9. g5 {[%clk 0:03:02.7]} 9... Nfd7 {[%clk 0:03:01.8]}
10. Bh3 {[%clk 0:03:02.4]} 10... Be7 {[%clk 0:03:02.3]} 11. Be3 {[%clk
0:02:52.2]} 11... O-O {[%clk 0:02:51.7]} 12. O-O {[%clk 0:02:51.3]} 12... d5
{[%clk 0:02:46.9]} 13. Nd2 {[%clk 0:02:50.3]} 13... Na6 {[%clk 0:02:42.4]} 14.
a3 {[%clk 0:02:47.6]} 14... Nc7 {[%clk 0:02:33.5]} 15. f4 {[%clk 0:02:43.3]}
15... dxe4 {[%clk 0:02:32.8]} 16. f5 {[%clk 0:02:39.4]} 16... exf5 {[%clk
0:02:31.1]} 17. Bxf5 {[%clk 0:02:39.9]} 17... Bxf5 {[%clk 0:02:22.8]} 18. Rxf5
{[%clk 0:02:40.4]} 18... g6 {[%clk 0:02:22.5]} 19. Rf2 {[%clk 0:02:41]} 19... f5
{[%clk 0:02:17.5]} 20. gxf6 {[%clk 0:02:36.3]} 20... Nxf6 {[%clk 0:02:16.6]} 21.
Raf1 {[%clk 0:02:23.7]} 21... Qd7 {[%clk 0:01:43.8]} 22. Bh6 {[%clk 0:02:13.6]}
22... Rf7 {[%clk 0:01:43.7]} 23. Bg5 {[%clk 0:02:13.7]} 23... Raf8 {[%clk
0:01:43.5]} 24. Ndxe4 {[%clk 0:02:08]} 24... Qg4+ {[%clk 0:01:19.8]} 25. Qxg4
{[%clk 0:02:01.9]} 25... Nxg4 {[%clk 0:01:19.8]} 26. Bxe7 {[%clk 0:01:59.6]}
26... Nxf2 {[%clk 0:00:59.6]} 27. Bxf8 {[%clk 0:01:57.1]} 27... Nxe4 {[%clk
0:00:58.5]} 28. Nxe4 {[%clk 0:01:18.8]} 28... Rxf1+ {[%clk 0:00:57]} 29. Kxf1
{[%clk 0:01:18.8]} 29... Kxf8 {[%clk 0:00:57.9]} 30. Nd6 {[%clk 0:01:11.6]}
30... Ne6 {[%clk 0:00:47]} 31. c3 {[%clk 0:01:01.2]} 31... b5 {[%clk 0:00:38.2]}
32. Kf2 {[%clk 0:00:47.4]} 32... Ke7 {[%clk 0:00:27.9]} 33. Nc8+ {[%clk
0:00:41.1]} 33... Kd7 {[%clk 0:00:28.1]} 34. Nxa7 {[%clk 0:00:41.8]} 34... Nf4
{[%clk 0:00:26.5]} 35. Kf3 {[%clk 0:00:21.7]} 35... Nd3 {[%clk 0:00:16.5]} 36.
Ke4 {[%clk 0:00:20.4]} 36... Nxb2 {[%clk 0:00:14.2]} 37. d5 {[%clk 0:00:20.9]}
37... cxd5+ {[%clk 0:00:09.9]} 38. Kxd5 {[%clk 0:00:21.4]} 38... g5 {[%clk
0:00:03.1]} 39. hxg5 {[%clk 0:00:16.7]} 39... h4 {[%clk 0:00:04]} 40. Ke4 {[%clk
0:00:11]} 40... h3 {[%clk 0:00:04.4]} 41. Kf3 {[%clk 0:00:11.1]} 41... Ke6
{[%clk 0:00:03.5]} 42. Nxb5 {[%clk 0:00:06.7]} 42... Kf5 {[%clk 0:00:03.6]} 43.
Kg3 {[%clk 0:00:06.9]} 43... Kxg5 {[%clk 0:00:03.9]} 44. Nd6 {[%clk 0:00:02.3]}
44... h2 {[%clk 0:00:04.8]} 45. Kxh2 {[%clk 0:00:02.3]} 45... Kf4 {[%clk
0:00:05.7]} 46. c4 {[%clk 0:00:02.8]} 46... Na4 {[%clk 0:00:05.1]} 47. Nb7
{[%clk 0:00:02.1]} 47... Ke4 {[%clk 0:00:04.4]} 48. c5 {[%clk 0:00:02.4]} 48...
Kd5 {[%clk 0:00:04.2]} 49. Kg3 {[%clk 0:00:02.6]} 49... Kc6 {[%clk 0:00:04.1]}
50. Na5+ {[%clk 0:00:02.8]} 50... Kxc5 {[%clk 0:00:04.6]} 51. Nb3+ {[%clk
0:00:03.1]} 51... Kc4 {[%clk 0:00:05.5]} 52. Nc1 {[%clk 0:00:03.7]} 52... Kc3
{[%clk 0:00:04.6]} 53. Kf2 {[%clk 0:00:04.2]} 53... Kb2 {[%clk 0:00:04.9]} 54.
Ne2 {[%clk 0:00:05.1]} 54... Kxa3 {[%clk 0:00:05]} 1/2-1/2

[Event "*** Titled Tuesday Blitz"]
[Site "Chess.com"]
[Date "2021.03.02"]
[Round "10"]
[White "howitzer14"]
[Black "Zhigalko_Sergei"]
[Result "1/2-1/2"]
[WhiteElo "3012"]
[BlackElo "2922"]
[TimeControl "180+1"]
[EndTime "11:59:22 PST"]
[Termination "Game drawn by repetition"]

1. b3 {[%clk 0:03:00.9]} 1... e5 {[%clk 0:02:59.4]} 2. Bb2 {[%clk 0:03:00.5]}
2... d6 {[%clk 0:02:59.7]} 3. g3 {[%clk 0:02:58.8]} 3... Nf6 {[%clk 0:02:59.2]}
4. Bg2 {[%clk 0:02:58.7]} 4... Be7 {[%clk 0:02:59.8]} 5. e3 {[%clk 0:02:52.7]}
5... O-O {[%clk 0:02:59.5]} 6. Ne2 {[%clk 0:02:51]} 6... c6 {[%clk 0:02:56.3]}
7. d3 {[%clk 0:02:47.5]} 7... a5 {[%clk 0:02:55.2]} 8. a3 {[%clk 0:02:47.1]}
8... Re8 {[%clk 0:02:50.9]} 9. Nd2 {[%clk 0:02:46.6]} 9... Bf8 {[%clk
0:02:50.5]} 10. h3 {[%clk 0:02:45.9]} 10... d5 {[%clk 0:02:50.6]} 11. g4 {[%clk
0:02:45.1]} 11... Qb6 {[%clk 0:02:38.1]} 12. Ng3 {[%clk 0:02:35.7]} 12... Be6
{[%clk 0:02:29.3]} 13. Qe2 {[%clk 0:02:08.1]} 13... Bd6 {[%clk 0:02:17.1]} 14.
g5 {[%clk 0:02:02.9]} 14... Nfd7 {[%clk 0:02:15.6]} 15. h4 {[%clk 0:02:03.8]}
15... a4 {[%clk 0:02:12.5]} 16. b4 {[%clk 0:02:01.1]} 16... c5 {[%clk
0:02:11.5]} 17. c4 {[%clk 0:01:48.1]} 17... dxc4 {[%clk 0:02:00.6]} 18. Nxc4
{[%clk 0:01:44.2]} 18... Bxc4 {[%clk 0:02:00.8]} 19. dxc4 {[%clk 0:01:44.8]}
19... cxb4 {[%clk 0:02:01.3]} 20. O-O {[%clk 0:01:40.2]} 20... bxa3 {[%clk
0:01:54.5]} 21. Bxa3 {[%clk 0:01:34.3]} 21... Bxa3 {[%clk 0:01:52.3]} 22. Rxa3
{[%clk 0:01:35.2]} 22... Nc5 {[%clk 0:01:51.2]} 23. h5 {[%clk 0:01:25.2]} 23...
e4 {[%clk 0:01:23.3]} 24. Rd1 {[%clk 0:01:22]} 24... Nbd7 {[%clk 0:01:11.5]} 25.
Nxe4 {[%clk 0:01:15.1]} 25... Nxe4 {[%clk 0:00:50.2]} 26. Rxd7 {[%clk
0:01:14.6]} 26... Qc5 {[%clk 0:00:46.9]} 27. g6 {[%clk 0:00:55.5]} 27... fxg6
{[%clk 0:00:42.7]} 28. Qb2 {[%clk 0:00:38.4]} 28... Nf6 {[%clk 0:00:20.9]} 29.
h6 {[%clk 0:00:29.1]} 29... Re7 {[%clk 0:00:21.4]} 30. Qxb7 {[%clk 0:00:20.3]}
30... Rae8 {[%clk 0:00:17.5]} 31. Rxe7 {[%clk 0:00:17.6]} 31... Rxe7 {[%clk
0:00:14.4]} 32. Qb8+ {[%clk 0:00:17.6]} 32... Re8 {[%clk 0:00:14.6]} 33. Bd5+
{[%clk 0:00:15.3]} 33... Kf8 {[%clk 0:00:13.3]} 34. Qb2 {[%clk 0:00:11.9]} 34...
Qe7 {[%clk 0:00:04.6]} 35. hxg7+ {[%clk 0:00:11.5]} 35... Qxg7 {[%clk
0:00:02.6]} 36. Qb4+ {[%clk 0:00:09.2]} 36... Qe7 {[%clk 0:00:02.3]} 37. Qxa4
{[%clk 0:00:09.8]} 37... Nxd5 {[%clk 0:00:02]} 38. cxd5 {[%clk 0:00:10.7]} 38...
Qg5+ {[%clk 0:00:02.6]} 39. Kf1 {[%clk 0:00:10.1]} 39... Qxd5 {[%clk 0:00:03.5]}
40. Qf4+ {[%clk 0:00:10.3]} 40... Kg8 {[%clk 0:00:03.3]} 41. Ra7 {[%clk
0:00:09]} 41... Qd1+ {[%clk 0:00:02.4]} 42. Kg2 {[%clk 0:00:09.4]} 42... Qd5+
{[%clk 0:00:03]} 43. Kg1 {[%clk 0:00:08.8]} 43... Rf8 {[%clk 0:00:03.1]} 44. Qd4
{[%clk 0:00:03.5]} 44... Qxd4 {[%clk 0:00:02.5]} 45. exd4 {[%clk 0:00:04.4]}
45... Rd8 {[%clk 0:00:03.1]} 46. Ra4 {[%clk 0:00:04.4]} 46... Kf7 {[%clk
0:00:03.7]} 47. Kg2 {[%clk 0:00:04.8]} 47... Ke6 {[%clk 0:00:03.5]} 48. Kf3
{[%clk 0:00:05.3]} 48... h5 {[%clk 0:00:03.2]} 49. Ra6+ {[%clk 0:00:05.1]} 49...
Kf5 {[%clk 0:00:03.1]} 50. Ra5+ {[%clk 0:00:05.6]} 50... Kf6 {[%clk 0:00:03.4]}
51. Ra6+ {[%clk 0:00:06.2]} 51... Kf5 {[%clk 0:00:03.5]} 52. Ra5+ {[%clk
0:00:06.7]} 52... Kf6 {[%clk 0:00:04]} 53. Ra6+ {[%clk 0:00:07.3]} 53... Kf5
{[%clk 0:00:04.5]} 1/2-1/2